Cogmind - Beta 13 @@@ ROGUE MODE // 2024.04.29 @ 11:58:56 Player: Wyvric Result: Self-destructed Performance ------------- Evolutions (2) 1000 Regions Visited (5) 1000 Robots Destroyed (25) 125 Value Destroyed (640) 640 Prototype IDs (23) 460 Alien Tech Used (0) 0 Bonus (321) 321 TOTAL SCORE: 3546 Bonus ------- Follower Combat Kills 21 Aligned with FarCom 300 Cogmind --------- Core Integrity 473/550 Matter 268/300 Energy 100/100 System Corruption 0% Temperature Cool (36) Movement Core (50) Location -8/Materials Parts ------- > --- POWER (1) -------- (None) > --- PROPULSION (4) --- Light Treads > --- UTILITY (4) ------ Hacking Suite System Shield > --- WEAPON (2) ------- Hammer > --- INVENTORY (5) ---- Humpback Humpback Peak State ------------ > --- POWER ------------ Ion Engine > --- PROPULSION ------- Light Treads Wheel Wheel Wheel > --- UTILITY ---------- Humpback Hacking Suite System Shield > --- WEAPON ----------- Lightning Gun Lightning Gun > --- INVENTORY -------- Light Treads Carbon-fiber Leg Improved Titanium Leg Improved Titanium Leg Wheel Wheel Wheel Aerolev Unit Combat Airjet Improved Heat Sink Large Storage Unit Humpback Humpback Humpback Humpback Humpback Structural Scanner Signal Interpreter Propulsion Shielding Trap Reconfigurator Lightning Gun Lightning Gun Particle Gun Heavy Particle Cannon AWS/Gauss Rocket Launcher Hammer Longsword +1 [Rating: 30] Favorites ----------- Power Ion Engine Engine Ion Engine Propulsion Wheel Treads Light Treads Leg Aluminum Leg Wheel Wheel Utility Humpback Device Seismic Detector Storage Humpback Hackware System Shield Weapon Assault Rifle Energy Gun Lightning Gun Ballistic Gun Assault Rifle Ballistic Cannon Light Cannon Launcher Grenade Launcher Impact Weapon Hammer Build | -11 -10 -10 -10 -9 -8 ------- Run | Yrd Mat Min Exi Min Mat Slots Evolved 4 | . . . . . 4 Power . | . . . . . . Propulsion 2 | . . . . . 2 Utility 2 | . . . . . 2 Weapon . | . . . . . . Parts Attached 45 | 7 12 4 4 5 13 Power 4 | 1 1 1 . 1 . Engine 4 | 1 1 1 . 1 . Core . | . . . . . . Reactor . | . . . . . . Propulsion 11 | 2 2 . 2 . 5 Treads 3 | . 2 . . . 1 Leg 3 | 2 . . . . 1 Wheel 5 | . . . 2 . 3 Hover . | . . . . . . Flight . | . . . . . . Utility 8 | 1 3 1 1 . 2 Device 3 | . 2 1 . . . Storage 3 | 1 1 . 1 . . Processor . | . . . . . . Hackware 2 | . . . . . 2 Protection . | . . . . . . Artifact . | . . . . . . Weapon 22 | 3 6 2 1 4 6 Energy Gun 4 | . . . . 1 3 Energy Cannon . | . . . . . . Ballistic Gun 9 | 3 3 1 . 2 . Ballistic Cannon 2 | . . . 1 1 . Launcher 4 | . 3 1 . . . Special Weapon . | . . . . . . Impact Weapon 3 | . . . . . 3 Slashing Weapon . | . . . . . . Piercing Weapon . | . . . . . . Special Melee Weapon . | . . . . . . Unidentified Prototypes . | . . . . . . Parts Lost 11 | . . 2 . 1 8 Power 3 | . . 1 . 1 1 Propulsion 4 | . . . . . 4 Utility 2 | . . 1 . . 1 Weapon 2 | . . . . . 2 Highest Loss Streak 6 | . . 2 . 1 6 To Critical Strikes . | . . . . . . Average Slot Usage (%) 90 | . 97 99 89 84 84 Engine 13 | . 14 13 14 13 8 Treads 10 | . 14 28 7 . 3 Leg 2 | . 13 . . . 5 Wheel 15 | . . . 20 28 25 Device 5 | . 11 13 3 . . Storage 13 | . 14 14 14 14 9 Hackware 1 | . . . . . 15 Ballistic Gun 17 | . 25 27 14 14 5 Ballistic Cannon 7 | . . . 13 13 3 Naked Turns . | . . . . . . Heaviest Build 215 | 14 34 31 208 215 213 Greatest Support 40 | 20 40 40 40 20 30 Greatest Overweight (x) 20 | 1 1 . 10 10 20 Average Overweight (x) 4 | . . . 6 10 6 Largest Inventory Capacity 35 | 8 15 15 35 35 35 Average Capacity 25 | 7 14 15 29 35 34 Most Carried 35 | 6 15 15 33 35 35 Average Carried 23 | 3 12 14 23 34 34 Final Capacity 35 | 8 15 15 35 35 5 Final Carried 35 | 6 15 15 33 35 4 Class Distribution -------------------- 54% | Hauler-Mutant 44% | Mutant Dominant Class ---------------- Mutant | -10/Materials Mutant | -10/Mines Hauler-Mutant | -10/Exiles Hauler-Mutant | -9/Mines Hauler-Mutant | -8/Materials Resources | -11 -10 -10 -10 -9 -8 ----------- Run | Yrd Mat Min Exi Min Mat Matter Collected 928 | 243 135 316 6 156 72 Remotely . | . . . . . . Salvage Created 677 | . 173 118 . 164 222 Parts 49 | . 18 8 . 14 9 Haulers Intercepted . | . . . . . . Recyclers Shooed . | . . . . . . Parts Field Recycled . | . . . . . . Retrieved Matter . | . . . . . . Parts Self-Destructed . | . . . . . . Prevented . | . . . . . . Kills | -11 -10 -10 -10 -9 -8 ------- Run | Yrd Mat Min Exi Min Mat Combat Hostiles Destroyed 21 | . 8 5 . 4 4 Guns 14 | . 6 4 . 3 1 Cannons 1 | . . . . 1 . AOE 4 | . 2 1 . . 1 Classes Destroyed 6 | . 3 . . 2 1 Worker 1 | . . . . 1 . Operator 1 | . . . . . 1 Watcher 2 | . 2 . . . . Swarmer 9 | . 6 3 . . . Grunt 11 | . 2 2 . 3 4 Brawler 1 | . . . . 1 . Best Kill Streak 3 | . 3 3 . 2 2 Combat Bots Only 3 | . 3 3 . 2 2 Max Kills in Single Turn 2 | . 1 2 . 1 2 Gunslinging 1 | . . 1 . . . Exploded 1 | . 1 1 . . 1 Melee . | . . . . . . Uniques/NPCs Destroyed . | . . . . . . Combat | -11 -10 -10 -10 -9 -8 -------- Run | Yrd Mat Min Exi Min Mat Hostile Shots Fired 164 | . 36 25 . 13 90 Missed 44 | . 9 7 . 2 26 Damage Taken 1651 | . 272 197 . 144 1038 Core 128 | . 9 42 . . 77 Absorbed by Shields . | . . . . . . Core Remaining (%) 89 | 100 . . . 79 . Volleys Fired 58 | . 29 9 . 11 9 Largest 2 | . 2 2 . 2 2 Hottest 110 | . 40 40 . 55 110 Shots Fired 108 | . 49 16 . 25 18 Gun 84 | . 40 14 . 14 16 Cannon 13 | . . . . 11 2 Launcher 11 | . 9 2 . . . Special . | . . . . . . Kinetic 83 | . 40 14 . 25 4 Thermal . | . . . . . . Explosive 11 | . 9 2 . . . Electromagnetic 14 | . . . . . 14 Robot Hit Streak 10 | . 5 3 . 10 6 Robot Miss Streak 5 | . 5 1 . 3 2 Penetration Max . | . . . . . . Secondary Targets 4 | . 1 2 . . 1 Max Gunslinging Chain 1 | . 1 1 . . 1 Autonomous 3 | . . . . 3 . Shots Hit Robots 67 | . 22 10 . 18 17 Core Hits 33 | . 10 10 . 8 5 Critical Kills . | . . . . . . Critical Parts Destroyed 1 | . . . . . 1 Critical Strikes 1 | . . . . . 1 Smash 1 | . . . . . 1 Melee Attacks 27 | . . . . . 27 Impact 27 | . . . . . 27 Slashing . | . . . . . . Piercing . | . . . . . . Sneak Attacks . | . . . . . . Combat Hostiles . | . . . . . . Follow-up Attacks . | . . . . . . Damage Inflicted 1350 | . 447 194 . 305 404 Guns 791 | . 244 143 . 197 207 Cannons 123 | . . . . 108 15 Explosions 297 | . 203 51 . . 43 Melee 139 | . . . . . 139 Ramming . | . . . . . . Kinetic 707 | . 244 143 . 305 15 Thermal 43 | . . . . . 43 Explosive 254 | . 203 51 . . . Electromagnetic 207 | . . . . . 207 Impact 139 | . . . . . 139 Slashing . | . . . . . . Piercing . | . . . . . . Highest Corruption . | . . . . . . Average Corruption . | . . . . . . Corruption Purged . | . . . . . . Corruption Blocked . | . . . . . . Overload Shots . | . . . . . . Overflow Damage 30 | . . . . . 30 Projectiles . | . . . . . . Explosions . | . . . . . . Melee 30 | . . . . . 30 Knockbacks 4 | . . . . 2 2 Impact 2 | . . . . . 2 Kinetic 2 | . . . . 2 . Secondary . | . . . . . . Self-Inflicted Damage 22 | . 22 . . . . Shots 1 | . 1 . . . . Rammed 1 | . 1 . . . . Targets Rammed 1 | . 1 . . . . Kicked . | . . . . . . Crushed . | . . . . . . Highest Temperature 192 | . 3 8 . 22 192 Average Temperature 41 | . 1 3 . 9 70 Received Heat Transfer 846 | . 30 69 . 81 666 Siege Activations . | . . . . . . Robots Corrupted 1 | . . . . . 1 Combat Hostiles 1 | . . . . . 1 Parts Fried 3 | . . . . . 3 Impact Corruptions 2 | . . . . . 2 Robots Melted . | . . . . . . Combat Hostiles . | . . . . . . Parts Melted . | . . . . . . Heat Transferred 50 | . . . . . 50 Parts Sabotaged . | . . . . . . Parts Stolen . | . . . . . . Parts Stripped . | . . . . . . Power Chain Reactions 1 | . . . . . 1 Alert | -11 -10 -10 -10 -9 -8 ------- Run | Yrd Mat Min Exi Min Mat Peak Influence 222 | . 222 173 . 65 212 Initial 61 | . . 61 . . . Average 57 | . 114 52 . 14 83 Maximum Alert Level 1 | . 1 . . . 1 Low Security (%) 95 | 100 82 100 . 100 94 Level 1 4 | . 17 . . . 5 Level 2 . | . . . . . . Level 3 . | . . . . . . Level 4 . | . . . . . . Level 5 . | . . . . . . High Security . | . . . . . . Max Security . | . . . . . . Squads Dispatched 5 | . 3 . . . 2 Investigation 2 | . 1 . . . 1 Extermination . | . . . . . . Reinforcement 3 | . 2 . . . 1 Assault . | . . . . . . Garrison . | . . . . . . Intercept . | . . . . . . Searches Triggered . | . . . . . . Construction Impeded . | . . . . . . Haulers Reinforced . | . . . . . . Active Scanning Responses . | . . . . . . Cargo Convoy Interrupts . | . . . . . . Stealth | -11 -10 -10 -10 -9 -8 --------- Run | Yrd Mat Min Exi Min Mat Distress Signals 1 | . 1 . . . . Communications Jammed . | . . . . . . Distress Signals . | . . . . . . Times Spotted 42 | . 15 5 . 5 17 Peak Tracking Total 6 | . 3 3 . 2 6 Tactical Retreats 6 | . 2 . . 1 3 Traps | -11 -10 -10 -10 -9 -8 ------- Run | Yrd Mat Min Exi Min Mat Traps Triggered 1 | . 1 . . . . Indirectly . | . . . . . . Trap Hack Attempts . | . . . . . . Triggered . | . . . . . . Disarmed . | . . . . . . Reprogrammed . | . . . . . . Reused . | . . . . . . Traps Extracted . | . . . . . . Installed . | . . . . . . Triggered . | . . . . . . Machines | -11 -10 -10 -10 -9 -8 ---------- Run | Yrd Mat Min Exi Min Mat Machines Disabled 1 | . . . . . 1 Max in Single Turn 1 | . . . . . 1 Machines Repaired . | . . . . . . Machines Dismantled . | . . . . . . Machines Sabotaged . | . . . . . . Overloaded Fab Kills . | . . . . . . Hacking | -11 -10 -10 -10 -9 -8 --------- Run | Yrd Mat Min Exi Min Mat Machines Accessed 6 | . 2 . 1 . 3 Terminals 3 | . 1 . . . 2 Fabricators . | . . . . . . Repair Stations . | . . . . . . Recycling Units 2 | . 1 . . . 1 Scanalyzers . | . . . . . . Garrison Access . | . . . . . . Total Hacks 10 | . 3 . 1 . 6 Successful 3 | . 1 . 1 . 1 Failed 7 | . 2 . . . 5 Catastrophic 3 | . 2 . . . 1 Database Lockouts . | . . . . . . Manual 10 | . 3 . 1 . 6 Terminals 7 | . 2 . . . 5 Fabricators . | . . . . . . Repair Stations . | . . . . . . Recycling Units 2 | . 1 . . . 1 Scanalyzers . | . . . . . . Garrison Access . | . . . . . . Terminal Hacks 1 | . . . 1 . . Derelict Proto ID Bank 1 | . . . 1 . . Fabricator Hacks . | . . . . . . Repair Station Hacks . | . . . . . . Recycling Unit Hacks . | . . . . . . Scanalyzer . | . . . . . . Garrison Access Hacks . | . . . . . . Unauthorized Hacks 2 | . 1 . . . 1 Terminals . | . . . . . . Fabricators . | . . . . . . Repair Stations . | . . . . . . Recycling Units 2 | . 1 . . . 1 Tunnel 2 | . 1 . . . 1 Scanalyzers . | . . . . . . Garrison Access . | . . . . . . Data Cores Recovered . | . . . . . . Used . | . . . . . . Hacking Detections 3 | . 1 . . . 2 Full Trace Events . | . . . . . . Feedback Events . | . . . . . . Feedback Blocked . | . . . . . . Robot Schematics Acquired . | . . . . . . Robots Built . | . . . . . . Authchips . | . . . . . . Time . | . . . . . . Total Robot Build Rating . | . . . . . . Part Schematics Acquired . | . . . . . . Parts Built . | . . . . . . Authchips . | . . . . . . Time . | . . . . . . Total Part Build Rating . | . . . . . . Parts Repaired . | . . . . . . Time . | . . . . . . Parts Recycled . | . . . . . . Recycled Matter . | . . . . . . Retrieved Matter . | . . . . . . Retrieved Components . | . . . . . . Parts Scanalyzed . | . . . . . . Part Schematics Acquired . | . . . . . . Parts Damaged . | . . . . . . Bothacking | -11 -10 -10 -10 -9 -8 ------------ Run | Yrd Mat Min Exi Min Mat Used RIF Installer . | . . . . . . Robots Hacked . | . . . . . . Non-combat . | . . . . . . Combat . | . . . . . . Robot Hacks Applied . | . . . . . . Relay Couplers Released . | . . . . . . Fabnet Peak Effective % . | . . . . . . Robots Rewired . | . . . . . . Allies Hacked . | . . . . . . Hacks Repelled . | . . . . . . Allies | -11 -10 -10 -10 -9 -8 -------- Run | Yrd Mat Min Exi Min Mat Total Allies 1 | . . . . 1 . Largest Group 1 | . . . . 1 1 Highest-Rated Group 31 | . . . . 31 31 Highest-Rated Ally 31 | . . . . 31 31 Total Orders . | . . . . . . Ally Attacks 4 | . . . . . 4 Total Damage 64 | . . . . . 64 Kills 3 | . . . . . 3 Allies Corrupted . | . . . . . . Allies Melted . | . . . . . . Intel | -11 -10 -10 -10 -9 -8 ------- Run | Yrd Mat Min Exi Min Mat Robot Analysis Total . | . . . . . . Derelict Logs Recovered 4 | . . 1 . 3 . Drone Launches . | . . . . . . Drone Recoveries . | . . . . . . Exploration | -11 -10 -10 -10 -9 -8 ------------- Run | Yrd Mat Min Exi Min Mat Turns Passed 4514 | 69 770 875 1060 1185 555 Spaces Moved 2173 | 45 375 524 505 489 235 Core 6 | 6 . . . . . Treads 904 | . 196 524 184 . . Legs 218 | 39 179 . . . . Wheels 1045 | . . . 321 489 235 Hover . | . . . . . . Flight . | . . . . . . Fastest Speed 50 | 50 120 160 80 230 170 Average Speed 186 | 114 161 160 203 230 175 Slowest Speed 380 | 120 190 160 230 230 380 Overloaded Moves . | . . . . . . Propulsion Burnouts . | . . . . . . Robots Hopped . | . . . . . . Cave-ins Triggered . | . . . . . . Exploration Rate (%) 57 | 4 58 90 80 93 19 Regions Visited 5 Branch Regions 3 Pre-discovered Areas 2 | . 1 . . . 1 Known Exits Taken . | . . . . . . Unknown Exits Taken 5 | 1 1 1 1 1 . Scrap Searched 2 | . . 1 . 1 . Spaces Dug 31 | . 21 . . . 10 Terrain Destroyed 97 | . 69 14 . 2 12 Melee 10 | . . . . . 10 Projectile 2 | . . . . 2 . AOE 85 | . 69 14 . . 2 Terrain Rammed . | . . . . . . Walls Destroyed . | . . . . . . Machines Disabled . | . . . . . . Actions | -11 -10 -10 -10 -9 -8 --------- Run | Yrd Mat Min Exi Min Mat Total 2475 | 59 489 544 539 531 313 Wait 81 | 1 52 5 . 16 7 Move 2168 | 44 374 523 504 488 235 Hop . | . . . . . . Pick Up 65 | 7 14 2 25 6 11 Fast Attach 15 | 5 2 1 1 2 4 Attach 12 | 1 1 1 . 3 6 Detach 2 | . . . . . 2 Swap 18 | 1 9 2 3 . 3 Drop 28 | . 7 1 6 5 9 Fire 58 | . 29 9 . 11 9 Melee 27 | . . . . . 27 Ram . | . . . . . . Kick . | . . . . . . Crush 1 | . 1 . . . . Escape Stasis . | . . . . . . Rewire . | . . . . . . Trap . | . . . . . . Miscellaneous . | . . . . . . Route ------- -11/Scrapyard -10/Materials (discovered 3 exits: [*Mat x2] / [*Min]) -10/Mines (discovered 3 exits: [*Mat x2] / *Exi) -10/Exiles (discovered 2 exits: [*Min x2]) -9/Mines -8/Materials (discovered 1 exit: Fac) History --------- Turn | Location | Event 10 | -11/Scrapyard | Discovered new exit (range 15) 70 | -11/Scrapyard | Entered Materials 305 | -10/Materials | Discovered new exit (range 11) 307 | -10/Materials | Build established: Mutant 627 | -10/Materials | Discovered new exit (range 8) 770 | -10/Materials | Discovered new exit (range 16) 840 | -10/Materials | Entered Mines 916 | -10/Mines | Learned Materials emergency access door positions 1063 | -10/Mines | Discovered new exit (range 7) 1312 | -10/Mines | Deemed a non-threat by the Exiles lab entrance 1355 | -10/Mines | Assembled infested the area 1434 | -10/Mines | Met 8R-AWN 1573 | -10/Mines | Discovered new exit (range 16) 1709 | -10/Mines | Discovered new exit (range 5) 1715 | -10/Mines | Entered Exiles 1763 | -10/Exiles | Welcomed by 8R-AWN 1787 | -10/Exiles | Met EX-HEX 1868 | -10/Exiles | Met EX-DEC 1894 | -10/Exiles | Visited The Gauntlet 2144 | -10/Exiles | Discovered new exit (range 11) 2291 | -10/Exiles | Met EX-BIN 2323 | -10/Exiles | Aligned with FarCom system 2325 | -10/Exiles | Given EX-Vault access code 2329 | -10/Exiles | Build established: Hauler-Mutant 2401 | -10/Exiles | Opened EX-Vault 2417 | -10/Exiles | Found Trap Reconfigurator 2425 | -10/Exiles | Found AWS/Gauss 2433 | -10/Exiles | Found Longsword +1 2483 | -10/Exiles | Warned to stay clear of 0b10 Research branches 2660 | -10/Exiles | Learned about 8R-AWN's background 2713 | -10/Exiles | Discovered new exit (range 15) 2775 | -10/Exiles | Stole three prototypes: Trap Reconfigurator, AWS/Gauss, Longsword +1 2775 | -10/Exiles | Entered Mines 3231 | -9/Mines | Received a Rocket Launcher from a helpful Derelict 3457 | -9/Mines | Learned 2 Materials zone layouts 3837 | -9/Mines | Received a Mining Laser from a helpful Derelict 3917 | -9/Mines | Discovered new exit (range 14) 3960 | -9/Mines | Entered Materials 3960 | -8/Materials | Accompanied by 1 ally 3960 | -8/Materials | Evolved 4 slots: Propulsion x2, Utility x2 3961 | -8/Materials | Identified exit to Factory 4515 | -8/Materials | Self-destructed Last Messages --------------- 04479_ Critical hit (Burn: +37). 04484_ Wheel destroyed. 04485_ G-47 Trooper misfires. 04488_ Acquired 63 matter. 04489_ Electrolysis Chamber disabled. 04493_ Wheel destroyed. 04495_ G-47 Trooper knocked back. 04503_ G-47 Trooper misfires. 04505_ Lightning Gun destroyed. 04505_ Critical hit (Burn: +37). 04512_ Destroyed Lgt. Nuclear Core. 04512_ G-47 Trooper system corrupted by crushing effect. 04512_ G-47 Trooper knocked back. 04513_ G-47 Trooper system terminally corrupted. 04513_ Aluminum Leg fried. 04513_ Critical hit (Burn: +37). 04513_ Humpback destroyed. 04515_ Wheel destroyed. 04515_ Critical hit (Burn: +37). Map ----- +----------------------------------------------------+ | | | | | | | | | | | | | | | | | ?????????????????????????????????????????????????? | | ?????????????????????????????????????????????????? | | ?????????????????????????????????????????????????? | | ?????????????????????????????????????????????????? | | ?????????????????????????????????????????????????? | | ?????????????????????????????????????????????????? | | ?????????????????????????????????????????????????? | | ?????????????????????????????????????????????????? | | ?????????????????????##??######??????????